bitfinex-derivatives/quotes_BTCF0:USTF0_20241013
["timestamp","ask_amount","ask_price","bid_price","bid_amount"]
[1728791384213,1.270265,62740.0,62739.0,0.0008]
[1728791384406,1.272265,62740.0,62739.0,0.0008]
[1728791385705,0.562265,62740.0,62739.0,0.0008]
[1728791385904,0.672265,62740.0,62739.0,0.0008]
[1728791389914,0.194105,62740.0,62739.0,0.0008]
[1728791393419,0.084105,62740.0,62739.0,0.0008]
[1728791393606,0.194105,62740.0,62739.0,0.0008]
[1728791398529,0.0044,62740.0,62739.0,0.1108]
[1728791399113,0.0044,62740.0,62739.0,0.1412]
[1728791399626,0.0044,62740.0,62739.0,0.0312]
[1728791403426,0.0044,62740.0,62739.0,0.0595473]
[1728791405029,0.0044,62740.0,62739.0,0.0312]
[1728791406030,0.0044,62740.0,62739.0,0.06006992]
[1728791407521,0.0044,62740.0,62739.0,0.17006992]
[1728791408227,0.0044,62740.0,62739.0,0.23377785]
[1728791409024,0.3612,62744.0,62739.0,0.23377785]
[1728791409025,0.0004,62744.0,62740.0,0.079705]
[1728791409226,0.0004,62745.0,62743.0,0.189702]
[1728791409423,0.0004,62751.0,62748.0,0.079695]
[1728791409628,0.0004,62751.0,62748.0,0.189695]
[1728791409923,0.04353013,62749.0,62748.0,0.189695]
[1728791410334,0.0004,62751.0,62750.0,0.079693]
[1728791410542,0.12674161,62762.0,62752.0,0.07969]
[1728791410728,0.20641761,62763.0,62752.0,0.18969]
[1728791410929,0.31641761,62763.0,62752.0,0.18969]
[1728791411438,0.189676,62763.0,62752.0,0.18969]
[1728791411834,0.3608,62762.0,62752.0,0.18969]
[1728791412240,0.00939092,62753.0,62752.0,0.19069]
[1728791412741,0.00939092,62753.0,62752.0,0.22349]
[1728791412934,0.01439092,62753.0,62752.0,0.22349]
[1728791414441,0.01439092,62753.0,62752.0,0.14230878]
[1728791422240,0.01439092,62753.0,62752.0,0.50310878]
[1728791422652,0.032,62767.0,62752.0,0.50310878]
[1728791422945,0.079674,62765.0,62759.0,0.17]
[1728791423546,0.032,62767.0,62759.0,0.17]
[1728791423744,0.079675,62764.0,62759.0,0.17]
[1728791424447,0.079675,62764.0,62759.0,0.001]
[1728791425050,0.249675,62764.0,62759.0,0.001]
[1728791425750,0.251675,62764.0,62759.0,0.002]
[1728791426652,0.251675,62764.0,62759.0,0.03049351]
[1728791426849,0.251675,62764.0,62759.0,0.002]
[1728791429053,0.251675,62764.0,62759.0,0.03002273]
[1728791429951,0.081675,62764.0,62759.0,0.03002273]
[1728791431046,0.081675,62764.0,62759.0,0.20002273]
[1728791432841,0.04301655,62763.0,62759.0,0.20002273]
[1728791433151,0.04301655,62762.0,62759.0,0.03002273]
[1728791433351,0.04301655,62761.0,62759.0,0.03002273]
[1728791433560,0.04301655,62760.0,62759.0,0.03002273]
[1728791434049,0.04301655,62763.0,62759.0,0.03002273]
[1728791434249,0.04301655,62762.0,62759.0,0.03002273]
[1728791434553,0.04301655,62761.0,62759.0,0.03002273]
[1728791434752,0.04301655,62760.0,62759.0,0.02902273]
[1728791434958,0.04301655,62760.0,62759.0,0.03002273]
[1728791435454,0.04301655,62762.0,62759.0,0.03002273]
[1728791435760,0.002,62761.0,62759.0,0.03002273]
[1728791435949,0.04301655,62760.0,62759.0,0.03002273]
[1728791436356,0.04501655,62760.0,62759.0,0.03002273]
[1728791440051,0.002,62760.0,62759.0,0.03002273]
[1728791448461,0.002,62760.0,62759.0,0.09371889]
[1728791450570,0.002,62760.0,62759.0,0.03002273]
[1728791450964,0.002,62760.0,62759.0,0.09377163]
[1728791451383,0.002,62760.0,62759.0,0.03002273]
[1728791455069,0.15291751,62760.0,62759.0,0.03002273]
[1728791461463,0.15291751,62760.0,62758.0,0.441321]
[1728791461668,0.31010679,62759.0,62758.0,0.440481]
[1728791461970,0.15131751,62759.0,62758.0,0.440481]
[1728791462775,0.15131751,62759.0,62758.0,0.441481]
[1728791462977,0.0004,62759.0,62758.0,0.441481]
[1728791463478,0.0024,62759.0,62758.0,0.441481]
[1728791463974,0.0024,62759.0,62758.0,0.4715526]
[1728791464777,0.0024,62759.0,62758.0,0.1107526]
[1728791464975,0.0024,62759.0,62758.0,0.4715526]
[1728791465177,0.0024,62759.0,62758.0,0.1107526]
[1728791465385,0.0024,62759.0,62758.0,0.4715526]
[1728791466077,0.0024,62759.0,62758.0,0.1107526]
[1728791466274,0.0024,62759.0,62758.0,0.4715526]
[1728791466976,0.0024,62759.0,62758.0,0.53532247]
[1728791467385,0.0024,62759.0,62758.0,0.17452247]
[1728791468871,0.0024,62759.0,62758.0,0.1107526]
[1728791469680,0.00239036,62772.0,62758.0,0.72045053]
[1728791469880,0.00239036,62772.0,62771.0,0.11]
[1728791470069,0.21999979,62772.0,62771.0,0.11]
[1728791470475,0.15174785,62772.0,62771.0,0.11]
[1728791471571,0.16107213,62772.0,62771.0,0.111]
[1728791471770,0.31042962,62772.0,62771.0,0.111]
[1728791472380,0.31142962,62772.0,62771.0,0.112]
[1728791473481,0.15274785,62772.0,62771.0,0.03227953]
[1728791475686,0.15274785,62772.0,62771.0,0.06098002]
[1728791476585,0.09605631,62772.0,62771.0,0.06098002]
[1728791477975,0.00339036,62772.0,62771.0,0.06098002]
[1728791484984,0.04562522,62772.0,62771.0,0.06098002]
[1728791485187,0.09466188,62772.0,62771.0,0.06098002]
[1728791485486,0.09466188,62772.0,62771.0,0.02970049]
[1728791485691,0.09466188,62772.0,62771.0,0.13934362]
[1728791488290,0.09413373,62772.0,62771.0,0.13934362]
[1728791490296,0.09413373,62772.0,62771.0,0.02934362]
[1728791490495,0.05214326,62772.0,62771.0,0.02934362]
[1728791490689,0.14959152,62772.0,62771.0,0.02934362]
[1728791491089,0.09413373,62772.0,62771.0,0.02934362]
[1728791492689,0.25961799,62772.0,62771.0,0.00064313]
[1728791492896,0.25928045,62772.0,62771.0,0.00064313]
[1728791493083,0.11339036,62772.0,62771.0,0.00064313]
[1728791496584,1.25641036,62772.0,62763.0,0.40862266]
[1728791496895,0.190075,62764.0,62763.0,0.3608]
[1728791498898,0.190075,62764.0,62760.0,0.07710778]
[1728791499201,0.0004,62761.0,62760.0,0.07710778]
[1728791500098,0.15908177,62761.0,62758.0,0.34355188]
[1728791500292,0.14517162,62760.0,62758.0,0.34355188]
[1728791500491,0.14557162,62759.0,62758.0,0.34355188]
[1728791501199,0.14557162,62759.0,62758.0,0.3608]
[1728791501397,0.28845589,62759.0,62758.0,0.3608]
[1728791501700,0.28845589,62759.0,62758.0,0.3618]
[1728791501998,0.28845589,62759.0,62758.0,0.001]
[1728791502301,0.2860066,62759.0,62758.0,0.3618]
[1728791502597,0.08894929,62759.0,62758.0,0.39109]
[1728791503694,0.08894929,62759.0,62758.0,0.03029]
[1728791503996,0.08894929,62759.0,62758.0,0.39109]
[1728791505199,0.04137518,62759.0,62758.0,0.39109]
[1728791507002,0.04138095,62759.0,62758.0,0.39109]
[1728791508105,0.0004,62759.0,62758.0,0.39109]
[1728791509506,0.0004,62759.0,62758.0,0.03029]
[1728791510101,0.0004,62759.0,62758.0,0.39109]
[1728791511506,0.0004,62759.0,62758.0,0.03029]
[1728791511708,0.0004,62759.0,62758.0,0.39109]
[1728791515006,0.0004,62759.0,62758.0,0.03029]
[1728791515211,0.0004,62759.0,62758.0,0.45473781]
[1728791515514,0.0004,62759.0,62758.0,0.39109]
[1728791516413,0.0004,62759.0,62758.0,0.40404614]
[1728791520101,0.0004,62759.0,62758.0,0.39607313]
[1728791520705,0.0004,62759.0,62758.0,0.47577756]
[1728791521402,0.0004,62759.0,62758.0,0.47577736]
[1728791522610,0.0004,62759.0,62758.0,0.5783293]
[1728791523215,0.0415938,62759.0,62758.0,0.39607293]
[1728791525008,0.0415938,62759.0,62758.0,0.39109]
[1728791525308,0.08943217,62759.0,62758.0,0.39607297]
[1728791527213,0.08943217,62759.0,62758.0,0.40404572]
[1728791529115,0.08939302,62759.0,62758.0,0.40404572]
[1728791530118,0.0004,62759.0,62758.0,0.62897796]
[1728791533023,0.0004,62759.0,62758.0,0.26817796]
[1728791533225,0.0004,62759.0,62758.0,0.62897796]
[1728791534224,0.0004,62761.0,62759.0,0.079681]
[1728791534424,0.0004,62761.0,62760.0,0.22556407]
[1728791535316,0.0004,62761.0,62760.0,0.34783415]
[1728791535719,0.0004,62761.0,62760.0,0.22556407]
[1728791536022,0.0014,62761.0,62760.0,0.22556407]
[1728791537222,0.0014,62761.0,62760.0,0.58636407]
[1728791537524,0.0024,62761.0,62760.0,0.58636407]
[1728791539828,0.0024,62761.0,62760.0,0.58636394]
[1728791541623,0.0024,62761.0,62760.0,0.69636394]
[1728791541928,0.0024,62761.0,62760.0,0.58636394]
[1728791542126,0.0024,62761.0,62760.0,0.68194931]
[1728791542527,0.0024,62761.0,62760.0,0.68194887]
[1728791542721,0.0024,62761.0,62760.0,0.66899372]
[1728791543423,0.0024,62761.0,62760.0,0.66895343]
[1728791543729,0.0024,62761.0,62760.0,0.79190859]
[1728791543924,0.0024,62761.0,62760.0,0.68190859]
[1728791545226,0.04368116,62761.0,62760.0,0.48375516]
[1728791546128,0.09160151,62761.0,62760.0,0.48375516]
[1728791548233,0.09158245,62761.0,62760.0,0.48375516]
[1728791549031,0.09158245,62761.0,62760.0,0.37375516]
[1728791549229,0.09158245,62761.0,62760.0,0.48375516]
[1728791549431,0.14607307,62761.0,62760.0,0.48375516]
[1728791549641,0.14607307,62761.0,62760.0,0.47578275]
[1728791552230,0.14607307,62761.0,62760.0,0.48375537]
[1728791552635,0.14607307,62761.0,62760.0,0.47578275]
[1728791552939,0.14599828,62761.0,62760.0,0.47578275]
[1728791553143,0.0024,62761.0,62760.0,0.57841944]
[1728791554131,0.0024,62761.0,62760.0,0.58639206]
[1728791554339,0.0024,62761.0,62760.0,0.57841944]
[1728791554545,0.0024,62761.0,62760.0,0.58639206]
[1728791555238,0.0024,62761.0,62760.0,0.57343669]
[1728791555944,0.0024,62761.0,62760.0,0.21263669]
[1728791557340,0.0024,62761.0,62760.0,0.29232993]
[1728791557538,0.0024,62761.0,62760.0,0.29240035]
[1728791558340,0.0024,62761.0,62760.0,0.29239888]
[1728791559040,0.0024,62761.0,62760.0,0.21270711]
[1728791559242,0.0024,62761.0,62760.0,0.29239889]
[1728791560143,0.0024,62761.0,62760.0,0.11]
[1728791560841,0.14574866,62761.0,62760.0,0.11]
[1728791561048,0.21848433,62761.0,62760.0,0.11]
[1728791561250,0.09133789,62761.0,62760.0,0.11]
[1728791561848,0.21848433,62761.0,62760.0,0.11]
[1728791562037,0.09133789,62761.0,62760.0,0.11]
[1728791562850,0.21848433,62761.0,62760.0,0.11]
[1728791563442,0.09133789,62761.0,62760.0,0.11]
[1728791563759,0.21848433,62761.0,62760.0,0.11]
[1728791565747,0.09133789,62761.0,62760.0,0.11]
[1728791566143,0.21848433,62761.0,62760.0,0.11]
[1728791566546,0.21844376,62761.0,62760.0,0.11]
[1728791567146,0.09129732,62761.0,62760.0,0.11]
[1728791568154,0.0024,62761.0,62760.0,0.2126908]
[1728791569757,0.0024,62761.0,62760.0,0.30827617]
[1728791569953,0.0024,62761.0,62760.0,0.2126908]
[1728791570655,0.0024,62761.0,62760.0,0.30827617]
[1728791570861,0.0024,62761.0,62760.0,0.2126908]
[1728791571261,0.0024,62761.0,62760.0,0.30827617]
[1728791571649,0.0024,62761.0,62760.0,0.2126908]
[1728791571849,0.0024,62761.0,62760.0,0.21270414]
[1728791573149,0.0024,62761.0,62760.0,0.30828951]
[1728791575255,0.0024,62761.0,62760.0,0.11]
[1728791575457,0.09134002,62761.0,62760.0,0.11]
[1728791577152,0.05679621,62761.0,62760.0,0.11]
[1728791577349,0.14573623,62761.0,62760.0,0.11]
[1728791577855,0.14573623,62761.0,62760.0,0.4708]
[1728791578055,0.14573623,62761.0,62760.0,0.11]
[1728791578259,0.14573623,62761.0,62760.0,0.4708]
[1728791578449,0.28877816,62761.0,62760.0,0.4708]
[1728791579061,0.28877816,62761.0,62760.0,0.11]
[1728791579262,0.28877816,62761.0,62760.0,0.4708]
[1728791579957,0.28877816,62761.0,62760.0,0.11]
[1728791580362,0.28877816,62761.0,62760.0,0.4708]
[1728791582355,0.14573623,62761.0,62760.0,0.4708]
[1728791583261,0.0024,62761.0,62760.0,0.69595723]
[1728791584960,0.0024,62761.0,62760.0,0.58595723]
[1728791589373,0.0024,62761.0,62760.0,0.22515723]
[1728791589572,0.0024,62761.0,62760.0,0.58595723]
[1728791590367,0.14548605,62761.0,62758.0,0.02969]
[1728791590563,0.0004,62759.0,62758.0,0.02969]
[1728791590765,0.08942363,62759.0,62758.0,0.40344608]
[1728791591661,0.08942363,62759.0,62758.0,0.04264608]
[1728791591860,0.08942363,62759.0,62758.0,0.40344608]
[1728791592073,0.08942363,62759.0,62758.0,0.04264608]
[1728791592271,0.08942363,62759.0,62758.0,0.40344608]
[1728791592573,0.08942363,62759.0,62758.0,0.40444608]
[1728791592775,0.08942363,62759.0,62758.0,0.04364608]
[1728791593078,0.0004,62759.0,62758.0,0.03069]
[1728791593267,0.08889546,62759.0,62758.0,0.03069]
[1728791596175,0.05451722,62759.0,62758.0,0.03069]
[1728791596379,0.08889546,62759.0,62758.0,0.03069]
[1728791597479,0.0004,62759.0,62758.0,0.13348418]
[1728791598576,0.0004,62759.0,62758.0,0.13346996]
[1728791601573,0.0004,62759.0,62758.0,0.21309619]
[1728791603377,0.0004,62759.0,62758.0,0.21307955]
[1728791605380,0.0004,62759.0,62758.0,0.03069]
[1728791612893,0.10205905,62759.0,62758.0,0.03069]
[1728791613105,0.14299876,62759.0,62758.0,0.03069]
[1728791613597,0.28608481,62759.0,62758.0,0.03069]
[1728791613784,0.08887263,62759.0,62758.0,0.03069]
[1728791617501,0.21588027,62759.0,62758.0,0.03069]
[1728791620496,0.0004,62759.0,62758.0,0.1334857]
[1728791622297,0.0004,62759.0,62758.0,0.13351651]
[1728791623808,0.0004,62759.0,62758.0,0.22917405]
[1728791624302,0.0004,62759.0,62758.0,0.13351651]
[1728791624905,0.0004,62759.0,62758.0,0.22917405]
[1728791626996,0.0004,62759.0,62758.0,0.2292221]
[1728791627504,0.0004,62759.0,62758.0,0.13356456]
[1728791631906,0.0004,62759.0,62758.0,0.13351434]
[1728791635398,0.14334585,62759.0,62755.0,0.34605564]
[1728791635599,0.0004,62756.0,62755.0,0.34605564]
[1728791635902,0.0004,62756.0,62755.0,0.3608]
[1728791636100,0.14334585,62756.0,62755.0,0.3608]
[1728791636506,0.14334585,62756.0,62755.0,0.3648]
[1728791636701,0.14091339,62756.0,62755.0,0.39378249]
[1728791637399,0.14091339,62756.0,62755.0,0.39678249]
[1728791638100,0.14091339,62756.0,62755.0,0.39378249]
[1728791638409,0.14091339,62756.0,62755.0,0.39678249]
[1728791640909,0.14082251,62756.0,62755.0,0.39678249]
[1728791642306,0.04071491,62756.0,62755.0,0.62354614]
[1728791642499,0.0004,62756.0,62755.0,0.62354614]
[1728791643100,0.0004,62756.0,62755.0,0.11045238]
[1728791643400,0.0004,62756.0,62755.0,0.19015884]
[1728791643806,0.0004,62756.0,62755.0,0.08670646]
[1728791644310,0.0004,62756.0,62755.0,0.007]
[1728791648212,0.47844,62756.0,62755.0,0.007]
[1728791648405,0.079691,62751.0,62750.0,0.0004]
[1728791648596,0.300091,62751.0,62750.0,0.10402452]
[1728791648809,0.190091,62751.0,62750.0,0.10402452]
[1728791649413,0.190091,62751.0,62749.0,0.3608]
[1728791649414,0.079694,62749.0,62748.0,0.0004]
[1728791649617,0.080094,62749.0,62748.0,0.06411235]
[1728791649905,0.080094,62749.0,62748.0,0.0004]
[1728791649906,0.558174,62749.0,62748.0,0.0004]
[1728791650105,0.558174,62749.0,62747.0,0.06610235]
[1728791650106,1.158174,62749.0,62747.0,0.06610235]
[1728791650307,0.0797,62744.0,62743.0,0.0004]
[1728791650505,0.12033893,62744.0,62743.0,0.0004]
[1728791650706,0.15493893,62744.0,62743.0,0.0004]
[1728791651622,0.15493893,62744.0,62739.0,0.0012]
[1728791651623,0.065703,62742.0,62739.0,0.0012]
[1728791651915,0.1104,62740.0,62739.0,0.0012]
[1728791652108,0.15103893,62740.0,62739.0,0.0012]
[1728791652720,0.04103893,62740.0,62739.0,0.0012]
[1728791652911,0.15103893,62740.0,62739.0,0.0012]
[1728791653414,0.1509432,62740.0,62739.0,0.0012]
[1728791653826,0.15092583,62740.0,62739.0,0.0152]
[1728791654000,0.15092583,62740.0,62739.0,0.0252]
[1728791654811,0.15192583,62740.0,62739.0,0.0252]
[1728791656117,0.04192583,62740.0,62739.0,0.0252]
[1728791657416,0.0014,62740.0,62739.0,0.0252]
[1728791658010,0.175703,62742.0,62739.0,0.0252]
[1728791658212,0.175703,62742.0,62739.0,0.0256]
[1728791659310,0.176703,62742.0,62739.0,0.0116]
[1728791659511,0.177703,62742.0,62739.0,0.0256]
[1728791677327,0.177703,62742.0,62740.0,0.10296965]
[1728791677527,0.177703,62742.0,62739.0,0.0256]
[1728791677726,0.177703,62742.0,62740.0,0.10297283]
[1728791677928,0.177703,62742.0,62739.0,0.0256]
[1728791678229,0.177703,62742.0,62740.0,0.10297538]
[1728791678529,0.177703,62742.0,62741.0,0.10297538]
[1728791678735,0.177703,62742.0,62740.0,0.0796859]
[1728791679036,0.0004,62741.0,62740.0,0.0796859]
[1728791679226,0.0004,62741.0,62740.0,0.10308728]
[1728791679422,0.0004,62741.0,62740.0,0.11408728]
[1728791679626,0.0004,62741.0,62740.0,0.12808728]
[1728791680340,0.0014,62741.0,62740.0,0.22376024]
[1728791680540,0.09042756,62741.0,62740.0,0.025]
[1728791682033,0.09043187,62741.0,62740.0,0.025]
[1728791682434,0.21724392,62741.0,62740.0,0.025]
[1728791682636,0.09043187,62741.0,62740.0,0.025]
[1728791682828,0.21724392,62741.0,62740.0,0.025]
[1728791683027,0.09043187,62741.0,62740.0,0.025]
[1728791684832,0.04313575,62741.0,62740.0,0.025]
[1728791686840,0.04313303,62741.0,62740.0,0.025]
[1728791687146,0.090426,62741.0,62740.0,0.025]
[1728791687639,0.0024,62741.0,62740.0,0.25094213]
[1728791689933,0.0024,62741.0,62740.0,0.27977941]
[1728791691543,0.0024,62741.0,62740.0,0.27977376]
[1728791693743,0.0024,62741.0,62740.0,0.15691229]
[1728791694041,0.1124,62741.0,62740.0,0.2798193]
[1728791695640,0.1124,62741.0,62740.0,0.15691229]
[1728791696240,0.1124,62741.0,62740.0,0.05383728]
[1728791696447,0.1124,62741.0,62740.0,0.15692324]
[1728791701247,0.1124,62741.0,62740.0,0.12808596]
[1728791702646,0.1124,62741.0,62740.0,0.025]
[1728791702647,0.15309499,62741.0,62740.0,0.025]
[1728791708358,0.04309499,62741.0,62740.0,0.025]
[1728791709050,0.04307553,62741.0,62740.0,0.025]
[1728791710663,0.0024,62741.0,62740.0,0.12809883]
[1728791712558,0.0024,62741.0,62740.0,0.28168692]
[1728791713460,0.0024,62741.0,62740.0,0.28167466]
[1728791713857,0.0024,62741.0,62740.0,0.28168154]
[1728791716166,0.0346,62744.0,62740.0,0.28168154]
[1728791716362,0.0346,62744.0,62741.0,0.22598154]
[1728791716564,0.0346,62744.0,62742.0,0.22598154]
[1728791716762,0.0346,62744.0,62743.0,0.22598154]
[1728791717466,0.0356,62744.0,62743.0,0.22598154]
[1728791717766,0.16241205,62744.0,62740.0,0.0561]
[1728791718067,0.0004,62741.0,62740.0,0.0561]
[1728791718463,0.0411468,62741.0,62740.0,0.0561]
[1728791718658,0.02714686,62741.0,62740.0,0.0421]
[1728791718854,0.02714686,62741.0,62740.0,0.0425]
[1728791719356,0.02714686,62741.0,62740.0,0.0455]
[1728791719357,0.01614686,62741.0,62740.0,0.0455]
[1728791720159,0.01714686,62741.0,62740.0,0.0585]
[1728791721067,0.002,62741.0,62740.0,0.0585]
[1728791725564,0.002,62741.0,62740.0,0.28467319]
[1728791728065,0.002,62741.0,62740.0,0.0585]
[1728791728268,0.002,62741.0,62740.0,0.28457329]
[1728791732557,0.002,62741.0,62740.0,0.0278]
[1728791732762,0.04259128,62741.0,62740.0,0.0278]
[1728791736392,0.002,62741.0,62740.0,0.0278]
[1728791740879,0.002,62741.0,62740.0,0.13093168]
[1728791742278,0.002,62741.0,62740.0,0.13092276]
[1728791751487,0.002,62741.0,62740.0,0.25384362]
[1728791754195,0.002,62741.0,62740.0,0.61464362]
[1728791754787,0.002,62741.0,62740.0,0.25384362]
[1728791755390,0.002,62741.0,62740.0,0.61464362]
[1728791755684,0.002,62741.0,62740.0,0.0278]
[1728791755887,0.002,62741.0,62740.0,0.3886]
[1728791756090,0.002,62741.0,62740.0,0.0278]
[1728791756296,0.04269956,62741.0,62740.0,0.3886]
[1728791758392,0.04269956,62741.0,62740.0,0.0278]
[1728791758691,0.04269956,62741.0,62740.0,0.3886]
[1728791759392,0.04269956,62741.0,62740.0,0.0278]
[1728791759995,0.04269956,62741.0,62740.0,0.3886]
[1728791762795,0.0322,62743.0,62740.0,0.61464381]
[1728791763001,0.0322,62743.0,62741.0,0.22604381]
[1728791763195,0.0322,62743.0,62740.0,0.3886]
[1728791763196,0.0322,62743.0,62742.0,0.22604381]
[1728791764005,0.0332,62743.0,62742.0,0.22604381]
[1728791764204,0.0342,62743.0,62742.0,0.22604381]
[1728791764390,0.0332,62743.0,62742.0,0.22604381]
[1728791764706,0.0342,62743.0,62742.0,0.22802383]
[1728791765701,0.0342,62743.0,62742.0,0.23002383]
[1728791771003,0.07513394,62743.0,62742.0,0.004]
[1728791773599,0.07510578,62743.0,62742.0,0.004]
[1728791774312,0.07509121,62743.0,62742.0,0.004]
[1728791776814,0.0342,62743.0,62742.0,0.004]
[1728791777018,0.12252867,62743.0,62742.0,0.004]
[1728791778013,0.0342,62743.0,62742.0,0.10699731]
[1728791778912,0.0342,62743.0,62742.0,0.22978946]
[1728791779116,0.0342,62743.0,62742.0,0.10699731]
[1728791781617,0.0342,62743.0,62742.0,0.2297368]
[1728791783826,0.0342,62743.0,62742.0,0.22960836]
[1728791789819,0.0342,62743.0,62742.0,0.20260688]
[1728791792937,0.0342,62743.0,62742.0,0.004]
[1728791793118,0.12258288,62743.0,62742.0,0.004]
[1728791800923,0.0342,62743.0,62742.0,0.20262402]
[1728791801128,0.1442,62743.0,62742.0,0.20262402]
[1728791801526,0.1442,62743.0,62742.0,0.22968032]
[1728791802941,0.1442,62743.0,62742.0,0.1866895]
[1728791803139,0.1442,62743.0,62742.0,0.18667809]
[1728791803322,0.1442,62743.0,62742.0,0.004]
[1728791805032,0.1442,62743.0,62742.0,0.08373563]
[1728791805433,0.1442,62743.0,62742.0,0.004]
[1728791806434,0.53315187,62743.0,62742.0,0.004]
[1728791807930,0.62087246,62743.0,62742.0,0.004]
[1728791808241,0.26007246,62743.0,62742.0,0.004]
[1728791808537,0.62087246,62743.0,62742.0,0.004]
[1728791808842,0.26007246,62743.0,62742.0,0.004]
[1728791809043,0.62087246,62743.0,62742.0,0.004]
[1728791809839,0.57374358,62743.0,62742.0,0.004]
[1728791810240,0.21294358,62743.0,62742.0,0.004]
[1728791812237,0.07479171,62743.0,62742.0,0.004]
[1728791812435,0.18479171,62743.0,62742.0,0.004]
[1728791815944,0.17330135,62743.0,62742.0,0.004]
[1728791822939,0.21398542,62743.0,62742.0,0.004]
[1728791824959,0.17330135,62743.0,62742.0,0.004]
[1728791825140,0.21399122,62743.0,62742.0,0.004]
[1728791827953,0.18488987,62743.0,62742.0,0.004]
[1728791829956,0.18488987,62743.0,62742.0,0.18677819]
[1728791829957,0.1442,62743.0,62742.0,0.18677819]
[1728791831550,0.1442,62743.0,62742.0,0.10704256]
[1728791831747,0.1442,62743.0,62742.0,0.18676546]
[1728791831951,0.1442,62743.0,62742.0,0.10704256]
[1728791832155,0.17338202,62743.0,62742.0,0.10704256]
[1728791833354,0.1442,62743.0,62742.0,0.10704256]
[1728791833862,0.1442,62743.0,62742.0,0.1070901]
[1728791839567,0.1442,62743.0,62742.0,0.1071071]
[1728791844567,0.1442,62743.0,62742.0,0.10709529]
[1728791845172,0.35933807,62743.0,62742.0,0.004]
[1728791846161,0.1442,62743.0,62742.0,0.004]
[1728791846356,0.3593255,62743.0,62742.0,0.004]
[1728791847164,0.23223546,62743.0,62742.0,0.004]
[1728791849261,0.18493728,62743.0,62742.0,0.004]
[1728791852764,0.23224072,62743.0,62742.0,0.004]
[1728791853165,0.1442,62743.0,62742.0,0.10710035]
[1728791858475,0.1442,62743.0,62742.0,0.18685488]
[1728791858876,0.1442,62743.0,62742.0,0.10710035]
[1728791860069,0.18485902,62743.0,62742.0,0.004]
[1728791860374,0.23206472,62743.0,62742.0,0.004]
[1728791860578,0.35916124,62743.0,62742.0,0.004]
[1728791862878,0.23206472,62743.0,62742.0,0.004]
[1728791863378,0.23200956,62743.0,62742.0,0.004]
[1728791863687,0.079713,62735.0,62727.0,0.0004]
[1728791863882,0.39530335,62743.0,62727.0,0.0004]
[1728791863883,0.11,62733.0,62727.0,0.0004]
[1728791864189,0.0004,62731.0,62727.0,0.0004]
[1728791864370,0.0874697,62731.0,62727.0,0.0004]
[1728791864571,0.6757097,62731.0,62722.0,0.0008]
[1728791864776,0.190127,62724.0,62722.0,0.0008]
[1728791864979,0.04103288,62723.0,62722.0,0.0008]
[1728791865179,0.29403288,62723.0,62722.0,0.0008]
[1728791866287,0.0004,62723.0,62722.0,0.1108]
[1728791866492,0.83284,62727.0,62722.0,0.0008]
[1728791866675,0.03988022,62726.0,62723.0,0.0004]
[1728791866877,0.11,62724.0,62723.0,0.0004]
[1728791867488,0.72284,62727.0,62723.0,0.0004]
[1728791867678,0.7224,62727.0,62723.0,0.0004]
[1728791867877,0.11,62724.0,62723.0,0.0004]
[1728791868079,0.111,62724.0,62723.0,0.0004]
[1728791868280,0.112,62724.0,62723.0,0.0004]
[1728791869483,0.111,62724.0,62723.0,0.0004]
[1728791869686,0.11,62724.0,62723.0,0.0004]
[1728791870179,0.111,62724.0,62723.0,0.0004]
[1728791870381,0.112,62724.0,62723.0,0.06397814]
[1728791870685,0.002,62724.0,62723.0,0.06397814]
[1728791871499,0.0004,62731.0,62723.0,0.54410345]
[1728791871686,0.0004,62731.0,62729.0,0.06355313]
[1728791871988,0.0004,62731.0,62730.0,0.06355313]
[1728791872580,0.0004,62731.0,62726.0,0.11]
[1728791872581,0.0004,62731.0,62726.0,0.18944142]
[1728791872780,0.0004,62731.0,62728.0,0.07972]
[1728791873080,0.0014,62731.0,62728.0,0.07972]
[1728791873278,0.0024,62731.0,62728.0,0.07972]
[1728791873676,0.0014,62731.0,62728.0,0.07972]
[1728791874177,0.0004,62731.0,62728.0,0.08072]
[1728791875187,0.0004,62731.0,62729.0,0.04766252]
[1728791875589,0.0004,62731.0,62730.0,0.0319]
[1728791876178,0.0004,62731.0,62730.0,0.07956252]
[1728791876382,0.0014,62731.0,62730.0,0.07956252]
[1728791877088,0.0034,62731.0,62730.0,0.0319]
[1728791877791,0.0034,62731.0,62728.0,0.04766252]
[1728791878008,0.0004,62729.0,62724.0,0.04766252]
[1728791878291,0.0004,62725.0,62724.0,0.04766252]
[1728791878490,0.0004,62725.0,62723.0,0.04806252]
[1728791878689,0.1104,62724.0,62723.0,0.04806252]
[1728791879284,0.1104,62724.0,62723.0,0.0004]
[1728791879887,0.2204,62724.0,62723.0,0.0004]
[1728791880394,0.2539,62724.0,62723.0,0.0024]
[1728791880698,0.2539,62724.0,62723.0,0.0034]
[1728791880699,0.1449,62724.0,62723.0,0.0034]
[1728791883081,0.1449,62724.0,62723.0,0.0024]
[1728791883588,0.1124,62724.0,62723.0,0.0024]
[1728791884989,0.2224,62724.0,62717.0,0.0004]
[1728791885191,0.190133,62718.0,62717.0,0.0004]
[1728791886595,0.190133,62718.0,62717.0,0.0014]
[1728791887100,0.191133,62718.0,62717.0,0.0014]
[1728791887287,0.192133,62718.0,62717.0,0.0014]
[1728791889796,0.082133,62718.0,62717.0,0.0014]
[1728791892393,0.082133,62718.0,62717.0,0.18447419]
[1728791893192,0.0024,62718.0,62717.0,0.21503277]
[1728791893891,0.0024,62718.0,62717.0,0.1114]
[1728791894089,0.190126,62724.0,62717.0,0.21546637]
[1728791894289,0.190126,62724.0,62723.0,0.07959695]
[1728791894497,0.190126,62724.0,62722.0,0.07959695]
[1728791894697,0.0004,62723.0,62718.0,0.17524934]
[1728791894898,0.0004,62723.0,62719.0,0.19901414]
[1728791895102,0.0004,62723.0,62720.0,0.1034978]
[1728791895286,0.0004,62723.0,62721.0,0.1034978]